bitfinex-derivatives/quotes_ETHF0:USTF0_20250929
["timestamp","ask_amount","ask_price","bid_price","bid_amount"]
[1759107175807,0.536,4131.5,4131.4,1.2106]
[1759107176007,0.782,4131.5,4131.4,2.08523272]
[1759107176709,0.9925,4131.5,4131.4,2.08523272]
[1759107178100,3.2078,4131.7,4131.6,1.21058]
[1759107178306,3.4538,4131.7,4131.6,1.21058]
[1759107178507,3.9898,4131.7,4131.6,1.21058]
[1759107179308,4.2003,4131.7,4131.3,0.3337]
[1759107179614,0.8773,4131.5,4131.4,0.4355]
[1759107179816,0.8773,4131.5,4131.4,0.9843]
[1759107180207,0.3307,4131.9,4131.5,0.4614]
[1759107180412,0.3307,4132.1,4132.0,0.9028]
[1759107180605,3.74631075,4132.2,4132.1,0.87682]
[1759107180808,3.99231075,4132.2,4132.1,2.08515272]
[1759107181208,0.99501075,4132.2,4132.1,2.08515272]
[1759107181605,0.00251075,4132.2,4132.1,2.08515272]
[1759107182418,0.20781075,4132.2,4132.1,2.08515272]
[1759107182811,0.00251075,4132.2,4132.1,2.08515272]
[1759107184317,0.536,4133.1,4133.0,1.33813]
[1759107184508,1.26045931,4133.1,4133.0,2.21276272]
[1759107185313,1.26307937,4133.1,4133.0,2.21276272]
[1759107186111,0.68637937,4133.1,4133.0,2.21276272]
[1759107186316,0.48107937,4133.1,4133.0,2.21276272]
[1759107186908,0.00262006,4133.1,4133.0,1.33813]
[1759107187720,0.53862006,4133.1,4133.0,1.33813]
[1759107189210,0.00262006,4133.1,4133.0,6.33813]
[1759107189413,0.00262006,4133.1,4133.0,1.33813]
[1759107192119,0.51862006,4133.1,4133.0,1.33813]
[1759107192425,0.20792006,4133.1,4133.0,1.33813]
[1759107192721,0.00262006,4133.1,4133.0,1.33813]
[1759107193221,0.21052006,4133.1,4133.0,2.21276272]
[1759107194324,0.00262006,4133.1,4133.0,2.21276272]
[1759107196824,0.00262006,4133.1,4133.0,1.33813]
[1759107197025,0.73762006,4133.1,4133.0,0.4414]
[1759107197223,0.73762006,4133.1,4133.0,0.2151]
[1759107198721,0.4243,4132.6,4132.5,1.07943272]
[1759107198929,0.735,4132.6,4132.5,1.38573272]
[1759107199127,0.2079,4132.6,4132.5,1.86931272]
[1759107199423,0.5186,4132.6,4132.5,1.43393272]
[1759107199724,0.5186,4132.6,4132.5,1.74023272]
[1759107202122,0.735,4132.6,4132.5,0.87463272]
[1759107202327,0.735,4132.6,4132.5,1.07943272]
[1759107202526,0.735,4132.6,4132.5,1.38573272]
[1759107202723,0.735,4132.4,4132.3,3.4126]
[1759107203221,0.735,4132.4,4131.6,0.87463272]
[1759107203222,0.4436,4132.0,4131.6,0.87463272]
[1759107203424,1.17047,4131.7,4131.6,1.07943272]
[1759107203615,1.17047,4131.7,4131.6,1.60853272]
[1759107204530,1.17047,4131.7,4131.6,0.7339]
[1759107204726,1.1815,4131.4,4131.3,1.40963272]
[1759107205825,1.1815,4131.4,4131.3,1.10063272]
[1759107206222,1.1815,4131.4,4131.3,1.62053272]
[1759107206424,0.97115,4131.9,4131.8,0.4369]
[1759107206730,1.21715,4131.9,4131.8,1.62053272]
[1759107207026,1.42745,4131.9,4131.8,1.62053272]
[1759107208025,1.18151,4131.3,4131.2,3.9537]
[1759107209424,0.746,4131.3,4131.2,3.9537]
[1759107209623,0.2228,4131.7,4131.6,0.7459]
[1759107209830,0.68146,4131.8,4131.7,0.7459]
[1759107210215,0.90426,4131.8,4131.7,0.7459]
[1759107210623,0.43546,4131.8,4131.7,0.7459]
[1759107210833,0.90426,4131.8,4131.7,0.7459]
[1759107211027,1.21716,4131.8,4131.7,0.7459]
[1759107211531,0.65826,4131.8,4131.7,0.7459]
[1759107211730,0.43545,4131.9,4131.8,0.7459]
[1759107212218,0.65825,4131.9,4131.8,0.7459]
[1759107212421,0.5357,4132.4,4132.3,0.4369]
[1759107212730,0.43538,4132.5,4132.4,0.309]
[1759107212930,0.90418,4132.5,4132.4,0.7459]
[1759107213330,1.21708,4132.5,4132.4,0.7459]
[1759107214729,1.42738,4132.5,4132.4,0.7459]
[1759107215328,1.42738,4132.5,4132.1,0.226]
[1759107215329,1.18141,4132.2,4132.1,0.226]
[1759107216528,0.86855,4131.9,4131.8,0.226]
[1759107216727,0.746,4131.9,4131.8,0.226]
[1759107217032,0.746,4131.9,4131.8,0.7459]
[1759107222029,0.43546,4131.8,4131.7,3.2078]
[1759107222231,1.18146,4131.8,4131.7,3.2078]
[1759107222533,1.18146,4131.8,4131.7,3.9537]
[1759107224936,1.18146,4131.8,4131.7,3.6447]
[1759107225346,1.18146,4131.8,4131.7,3.9537]
[1759107225937,0.746,4131.8,4131.3,0.309]
[1759107226130,1.1815,4131.4,4131.3,0.226]
[1759107226440,1.4275,4131.4,4131.3,0.226]
[1759107226739,0.43553,4131.1,4131.0,0.309]
[1759107226933,1.18153,4131.1,4131.0,0.226]
[1759107227439,1.18153,4131.1,4131.0,0.535]
[1759107227630,1.18153,4131.1,4131.0,0.7459]
[1759107227830,0.43553,4131.1,4131.0,0.8683]
[1759107228037,0.43552,4131.2,4131.0,0.5593]
[1759107228245,0.43552,4131.2,4131.1,0.7459]
[1759107228438,0.97122,4131.2,4131.1,0.7459]
[1759107228735,1.18158,4130.6,4130.5,0.00281496]
[1759107228930,1.0081377,4130.6,4130.5,1.76114384]
[1759107229130,0.74847,4130.7,4130.6,0.535]
[1759107229340,0.74847,4130.7,4130.6,0.7459]
[1759107229537,0.97127,4130.7,4130.6,0.7459]
[1759107229731,1.18157,4130.7,4130.6,0.4369]
[1759107230430,1.18157,4130.7,4130.6,0.226]
[1759107230832,1.18157,4130.7,4130.6,0.4369]
[1759107232238,1.18157,4130.7,4130.5,0.00281496]
[1759107232642,1.18157,4130.7,4130.6,0.226]
[1759107234443,1.42757,4130.7,4130.6,0.226]
[1759107234940,1.42757,4130.7,4130.5,0.00281496]
[1759107236040,0.9043598,4130.6,4130.5,0.00281496]
[1759107236241,0.7595,4130.6,4130.5,0.00281496]
[1759107236441,1.23141873,4130.6,4130.5,0.00281496]
[1759107236639,4.43921873,4130.6,4130.5,0.00281496]
[1759107239344,4.68521873,4130.6,4130.5,0.21141496]
[1759107239536,4.2133,4130.6,4130.5,0.21141496]
[1759107239737,4.2133,4130.6,4130.5,0.00281496]
[1759107239932,3.9673,4130.6,4130.5,0.21141496]
[1759107240142,4.2133,4130.6,4130.5,0.21141496]
[1759107241746,3.9673,4130.6,4130.5,0.21141496]
[1759107241946,0.541,4130.6,4130.5,0.75681496]
[1759107242240,0.787,4130.6,4130.5,0.75681496]
[1759107242439,1.0055,4130.6,4130.5,0.00281496]
[1759107245546,0.7595,4130.6,4130.5,0.00281496]
[1759107245741,1.0055,4130.6,4130.5,0.00281496]
[1759107248147,1.48009976,4130.6,4130.5,0.00281496]
[1759107252446,1.48009976,4130.6,4130.5,1.43354384]
[1759107252648,1.48009976,4130.6,4130.5,1.75174384]
[1759107252852,1.48009976,4130.6,4130.5,0.00281496]
[1759107260464,1.91566976,4130.6,4130.5,0.00281496]
[1759107270368,1.66966976,4130.6,4130.5,0.00281496]
[1759107270565,1.91566976,4130.6,4130.5,0.00281496]
[1759107278171,1.66966976,4130.6,4130.5,0.75801496]
[1759107278368,1.91566976,4130.6,4130.5,0.75801496]
[1759107278567,1.91566976,4130.6,4130.5,0.43451496]
[1759107279872,1.91566976,4130.6,4130.5,0.00281496]
[1759107280076,1.48009976,4130.6,4130.5,0.22941496]
[1759107280572,1.01559976,4130.6,4130.5,5.75801496]
[1759107280767,0.47459976,4130.6,4130.5,9.08821496]
[1759107281080,0.72059976,4130.6,4130.5,9.08821496]
[1759107281467,0.47459976,4130.6,4130.5,9.08821496]
[1759107281778,0.4289,4131.3,4131.2,0.4317]
[1759107281968,0.6749,4131.3,4131.1,0.43551]
[1759107282275,1.0109,4131.3,4131.2,0.2266]
[1759107282970,0.7649,4131.2,4131.1,0.43551]
[1759107283170,0.7649,4131.2,4131.1,0.66211]
[1759107284573,0.7649,4131.2,4131.1,1.19071]
[1759107284776,0.7649,4131.2,4131.1,0.7552]
[1759107284970,0.7649,4131.2,4131.1,0.4317]
[1759107286075,0.7649,4131.2,4131.1,0.2266]
[1759107287574,0.55,4131.1,4131.0,0.66212]
[1759107287778,0.7649,4131.1,4131.0,0.66212]
[1759107290082,0.7649,4131.1,4131.0,0.2266]
[1759107290275,0.7649,4131.1,4131.0,0.4317]
[1759107290591,0.7649,4131.1,4131.0,0.7552]
[1759107293188,0.55,4131.1,4131.0,3.963]
[1759107293879,0.4355,4131.2,4131.0,3.963]
[1759107294090,0.3346,4131.1,4131.0,4.39852]
[1759107294278,0.3346,4131.1,4131.0,5.27399117]
[1759107294582,0.97749,4131.3,4131.2,0.7545]
[1759107294884,1.45196286,4131.3,4131.2,0.7545]
[1759107295887,1.67446286,4131.3,4131.2,0.7545]
[1759107297182,1.67446286,4131.3,4131.2,0.4303]
[1759107297377,0.43551,4131.1,4131.0,4.28807117]
[1759107297581,1.20001,4131.1,4131.0,4.08327117]
[1759107298086,0.7645,4131.1,4131.0,4.83777117]
[1759107301886,0.7645,4131.1,4131.0,3.9623]
[1759107302093,0.7645,4131.1,4131.0,3.2078]
[1759107302285,1.48420122,4131.1,4131.0,3.2078]
[1759107305695,1.48420122,4131.1,4131.0,3.4126]
[1759107308200,1.91971122,4131.1,4131.0,3.4126]
[1759107311291,1.91971122,4131.1,4131.0,4.83777117]
[1759107311596,1.15521122,4131.1,4131.0,4.87657117]
[1759107312495,1.48071122,4131.1,4131.0,4.87657117]
[1759107318497,1.48071122,4131.1,4131.0,4.83777117]
[1759107318999,1.48071122,4131.1,4131.0,5.27330117]
[1759107319200,1.48071122,4131.1,4131.0,4.83777117]
[1759107319899,1.69241122,4131.1,4131.0,4.83777117]
[1759107320096,1.91141122,4131.1,4131.0,3.6381]
[1759107320301,1.91141122,4131.1,4131.0,3.4126]
[1759107320602,1.91141122,4131.1,4131.0,3.2078]
[1759107320991,0.97277,4130.6,4130.5,4.83078613]
[1759107323604,1.19177,4130.6,4130.5,4.83078613]
[1759107323799,1.19177,4130.6,4130.5,4.83928613]
[1759107323995,1.66653829,4130.6,4130.5,3.21061496]
[1759107324502,2.54200946,4130.6,4130.5,0.00281496]
[1759107325004,43.34200946,4130.6,4130.5,0.00281496]
[1759107325390,2.54200946,4130.6,4130.5,0.00281496]
[1759107325593,1.91253829,4130.6,4130.5,0.75801496]
[1759107325790,1.91253829,4130.6,4130.5,0.00281496]
[1759107326597,1.66653829,4130.6,4130.5,0.00281496]
[1759107326797,1.91253829,4130.6,4130.5,0.00281496]
[1759107332400,0.5179,4129.6,4129.5,3.963]
[1759107333198,0.95357,4129.6,4129.5,3.963]
[1759107333398,0.95620163,4129.6,4129.5,3.96562049]
[1759107335806,0.52053163,4129.6,4129.5,3.96562049]
[1759107336205,0.00263163,4129.6,4129.5,9.08792049]
[1759107338713,0.74419,4130.4,4130.3,0.7552]
[1759107338904,1.4369083,4130.4,4130.3,0.7552]
[1759107339610,1.43964318,4130.4,4130.3,0.7552]
[1759107342316,0.95622488,4130.4,4130.3,0.7552]
[1759107343406,1.17782488,4130.4,4130.3,0.7552]
[1759107345815,1.17782488,4130.4,4130.3,0.4343]
[1759107346414,1.66164795,4130.4,4130.3,0.4343]
[1759107346615,1.66164795,4130.4,4130.3,0.7552]
[1759107347014,1.17782488,4130.4,4130.3,0.7552]
[1759107347314,1.66165501,4130.4,4130.3,0.7552]
[1759107349116,0.86651,4130.2,4130.1,0.2097]
[1759107349316,0.5179,4130.1,4130.0,3.2078]
[1759107349523,0.9855,4130.1,4130.0,3.2078]
[1759107350216,1.46966622,4130.1,4130.0,3.2078]
[1759107352009,0.2093,4129.6,4129.5,4.22350396]
[1759107352322,0.5179,4129.6,4129.5,4.97870396]
[1759107352820,0.95357,4129.6,4129.5,4.97870396]
[1759107353717,1.17517,4129.6,4129.5,0.00262049]
[1759107353916,1.65977267,4129.6,4129.5,0.00262049]
[1759107354118,1.65977267,4129.6,4129.5,0.22922049]
[1759107355922,1.90577267,4129.6,4129.5,0.22922049]
[1759107359416,1.90577267,4129.6,4129.5,0.00262049]
[1759107359617,0.43566,4129.7,4129.6,0.3319]
[1759107359822,1.00555,4129.9,4129.8,0.7784]
[1759107360121,1.4901821,4129.9,4129.8,1.79148347]
[1759107360521,0.4846321,4129.9,4129.8,1.79148347]
[1759107360725,1.43672488,4130.4,4130.3,0.7784]
[1759107361023,1.27984505,4130.4,4129.7,0.43566]
[1759107361227,0.7524,4129.8,4129.7,1.79148347]
[1759107361925,0.7524,4129.8,4129.7,0.7784]
[1759107364828,0.7524,4129.8,4129.7,0.4465]
[1759107365022,1.23755524,4129.8,4129.7,0.4465]
[1759107365419,1.23755524,4129.8,4129.7,0.7784]
[1759107366526,1.23755524,4129.8,4129.7,0.4465]
[1759107367423,1.23755524,4129.8,4129.7,0.2266]
[1759107368923,1.48355524,4129.8,4129.7,0.2266]
[1759107369325,0.86416,4129.7,4129.6,3.2078]
[1759107369525,1.67321524,4129.7,4129.6,3.2078]
[1759107373231,1.67321524,4129.7,4129.6,3.4344]
[1759107375632,1.67321524,4129.7,4129.6,3.9688]
[1759107376235,1.91921524,4129.7,4129.6,3.9688]
[1759107377033,1.91921524,4129.7,4129.6,4.40448]
[1759107377434,1.24471524,4129.7,4129.6,4.40448]
[1759107377739,1.70041524,4129.7,4129.6,3.9688]
[1759107378743,1.48509495,4129.7,4129.6,3.9688]
[1759107380842,1.69919495,4129.7,4129.6,3.9688]
[1759107381139,1.69919495,4129.7,4129.6,3.2078]
[1759107382342,1.69919495,4129.7,4129.6,3.423]
[1759107382640,1.69919495,4129.7,4129.6,3.9574]
[1759107383041,1.26469495,4129.7,4129.6,3.9574]
[1759107383433,1.48509495,4129.7,4129.6,3.9574]
[1759107385738,1.23909495,4129.7,4129.6,3.9574]
[1759107386042,1.48509495,4129.7,4129.6,3.9574]
[1759107388446,1.70269495,4129.7,4129.6,3.9574]
[1759107389838,1.48509495,4129.7,4129.6,3.9574]
[1759107391040,1.70269495,4129.7,4129.6,3.6469]
[1759107391245,1.45669495,4129.7,4129.6,3.423]
[1759107391444,1.70269495,4129.7,4129.6,3.423]
[1759107396151,1.70269495,4129.7,4129.6,3.9644]
[1759107399253,1.45669495,4129.7,4129.6,3.9644]
[1759107399453,1.70269495,4129.7,4129.6,3.9644]
[1759107399652,1.70269495,4129.7,4129.6,3.6304]
[1759107401056,1.70269495,4129.7,4129.6,3.423]
[1759107401565,1.70269495,4129.7,4129.6,0.2152]
[1759107401765,1.21678,4129.6,4129.5,0.00262049]
[1759107402062,1.21686,4128.9,4128.8,0.4261]
[1759107402261,1.73269495,4128.9,4128.8,0.7601]
[1759107402462,1.73269495,4128.9,4128.8,0.4261]
[1759107402666,1.21687,4128.7,4128.6,3.4265]
[1759107402860,1.48670495,4128.7,4128.6,3.4265]
[1759107403059,1.48670495,4128.7,4128.6,3.42940123]
[1759107403959,1.48670495,4128.7,4128.6,3.97080123]
[1759107404764,1.05093495,4128.7,4128.6,3.97080123]
[1759107405165,1.29693495,4128.7,4128.6,3.97080123]
[1759107406058,1.05093495,4128.7,4128.6,3.97080123]
[1759107406263,1.29693495,4128.7,4128.6,3.97080123]
[1759107409467,0.5857,4128.7,4128.6,3.97080123]
[1759107410361,0.3397,4128.7,4128.6,3.97080123]
[1759107410672,0.3397,4129.1,4129.0,0.4261]
[1759107410962,1.94692737,4129.1,4129.0,0.7601]
[1759107411262,0.82379737,4129.1,4129.0,0.7601]
[1759107411468,3.2078,4129.2,4129.1,1.19583]
[1759107411661,3.4538,4129.2,4129.1,2.07150023]
[1759107411962,0.246,4129.2,4129.1,2.07150023]
[1759107413168,0.5635,4129.5,4129.4,1.1958]
[1759107413369,1.29370456,4129.5,4129.4,2.07147023]
[1759107414673,0.73020456,4129.5,4129.4,2.07147023]
[1759107414972,1.06180456,4129.5,4129.4,2.07147023]
[1759107416367,0.73020456,4129.5,4129.4,2.07147023]
[1759107416570,0.5412,4130.1,4130.0,0.7685]
[1759107416869,1.27165222,4130.1,4130.0,1.64417023]
[1759107417063,1.48075222,4130.1,4130.0,0.7685]
[1759107417369,1.91638222,4130.1,4130.0,0.7685]
[1759107417666,1.91638222,4130.1,4130.0,0.4402]
[1759107418465,1.91638222,4130.1,4130.0,0.7685]
[1759107420668,1.91638222,4130.1,4130.0,0.4402]
[1759107420972,0.7503,4129.7,4129.6,0.216]
[1759107421268,1.48179265,4129.7,4129.6,0.216]
[1759107424172,0.5412,4129.2,4129.1,3.648]
[1759107424371,0.7503,4129.2,4129.1,3.9763]
[1759107425175,0.7503,4129.2,4129.1,4.41203]
[1759107425872,0.7503,4129.2,4129.1,3.9763]
[1759107426072,1.62597023,4129.2,4129.1,3.2078]
[1759107427074,2.11231433,4129.2,4129.1,3.2078]
[1759107427275,0.7503,4128.8,4128.7,1.20427]
[1759107427474,0.7503,4128.8,4128.7,2.07994023]
[1759107428977,0.5412,4128.8,4128.7,2.07994023]
[1759107429379,0.3316,4128.8,4128.7,2.07994023]
[1759107429780,0.9184,4129.0,4128.9,0.7685]
[1759107430280,0.3316,4129.0,4128.9,0.7685]
[1759107430487,0.76732,4129.2,4129.1,0.7685]
[1759107430673,1.70834876,4129.2,4129.1,0.7685]
[1759107431180,1.91744876,4129.2,4129.1,0.7685]
[1759107433681,1.91744876,4129.2,4129.1,0.4402]
[1759107433881,1.91744876,4129.2,4129.1,0.774]
[1759107434879,1.91744876,4129.2,4129.1,0.4402]
[1759107435778,1.91744876,4129.2,4129.1,0.216]
[1759107436785,0.86233,4129.1,4129.0,0.87567023]
[1759107436988,1.66065876,4129.1,4129.0,0.87567023]
[1759107437183,0.43577,4128.7,4128.6,3.21070123]
[1759107437380,1.17427,4128.7,4128.6,3.21070123]
[1759107437579,1.17427,4128.7,4128.6,3.42880123]
[1759107437882,1.17427,4128.7,4128.6,3.96920123]
[1759107439188,1.17427,4128.7,4128.6,3.63540123]
[1759107440286,1.17427,4128.7,4128.6,3.96920123]
[1759107444791,1.17427,4128.7,4128.6,4.40498123]
[1759107444792,0.7385,4128.7,4128.6,4.40498123]
[1759107444982,0.5195,4128.7,4128.6,4.40498123]
[1759107445291,0.95527,4128.7,4128.6,4.40498123]
[1759107449986,0.5195,4128.7,4128.6,4.40498123]
[1759107450287,1.17087,4128.7,4128.6,3.63540123]
[1759107450489,1.22196891,4128.7,4128.6,3.97520123]
[1759107450690,0.79876891,4128.7,4128.6,4.41098123]
[1759107450886,0.48686891,4128.7,4128.6,4.41098123]
[1759107451089,1.00986,4128.9,4128.8,1.21026]
[1759107451290,1.70640067,4128.9,4128.8,2.08593023]
[1759107451490,1.02564067,4128.9,4128.8,2.08593023]
[1759107451693,0.43575,4129.0,4128.8,1.21026]
[1759107451894,0.76485,4129.0,4128.9,1.65017023]
[1759107452095,1.46148583,4129.0,4128.9,1.65017023]
[1759107452494,1.80488583,4129.0,4128.9,1.65017023]
[1759107453389,0.64567,4128.7,4128.6,3.64540123]
[1759107453592,0.97477,4128.7,4128.6,3.98520123]
[1759107454897,0.539,4128.7,4128.6,3.98520123]
[1759107455294,1.48665889,4128.7,4128.6,0.00290123]
[1759107456297,1.48665889,4128.7,4128.6,0.22200123]
[1759107459696,1.48665889,4128.7,4128.6,0.77740123]
[1759107460390,1.48665889,4128.7,4128.6,0.43760123]
[1759107460590,1.24165889,4128.7,4128.6,0.77740123]
[1759107460791,1.48665889,4128.7,4128.6,0.77740123]
[1759107461297,1.48665889,4128.7,4128.6,0.43760123]
[1759107463299,1.48665889,4128.7,4128.6,0.22200123]
[1759107464192,1.48665889,4128.7,4128.6,0.00290123]
[1759107470105,1.92242889,4128.7,4128.6,0.00290123]
[1759107470309,2.93611314,4128.7,4128.6,0.00290123]
[1759107470505,7.93611314,4128.7,4128.6,0.00290123]
[1759107471706,48.73611314,4128.7,4128.6,0.00290123]
[1759107476900,1.00305,4128.0,4127.9,0.02422569]
[1759107477204,2.07050889,4128.0,4127.9,0.02422569]
[1759107477903,2.07050889,4128.0,4127.9,0.02636224]
[1759107478808,1.82550889,4128.0,4127.9,0.77906224]
[1759107479005,2.07050889,4128.0,4127.9,0.77906224]
[1759107479211,2.07050889,4128.0,4127.9,0.02636224]
[1759107480707,1.82550889,4128.0,4127.9,0.24196224]
[1759107480905,2.07050889,4128.0,4127.9,0.77906224]
[1759107481108,2.07050889,4128.0,4127.9,0.44726224]
[1759107481311,2.07050889,4128.0,4127.9,0.24196224]
[1759107486616,2.07050889,4128.0,4127.9,0.67782224]
[1759107488613,2.07050889,4128.0,4127.9,0.02636224]
[1759107491314,2.07050889,4128.0,4127.9,1.00962224]
[1759107491710,1.38965889,4128.0,4127.9,0.67782224]
[1759107491912,1.29345889,4128.0,4127.9,2.23170649]
[1759107492114,1.65345889,4128.0,4127.9,2.23170649]
[1759107492612,1.65345889,4128.0,4127.9,1.21802224]
[1759107493217,2.08930889,4128.0,4127.9,1.21802224]
[1759107494212,1.65345889,4128.0,4127.9,1.21802224]
[1759107495317,2.08930889,4128.0,4127.9,1.21802224]
[1759107496519,2.08930889,4128.0,4127.9,0.78216224]
[1759107496710,2.08930889,4128.0,4127.9,0.02636224]
[1759107497108,3.10299314,4128.0,4127.9,0.02636224]
[1759107501820,1.40845889,4128.0,4127.9,0.78836224]
[1759107502026,0.73205889,4128.0,4127.9,0.78836224]
[1759107502320,1.62435889,4128.0,4127.9,0.78836224]
[1759107502529,1.26435889,4128.0,4127.9,0.78836224]
[1759107502727,1.03835889,4128.0,4127.9,0.78836224]
[1759107503028,0.79335889,4128.0,4127.9,0.78836224]
[1759107503328,1.03835889,4128.0,4127.9,0.78836224]
[1759107505429,0.79335889,4128.0,4127.9,0.78836224]
[1759107506234,1.36345889,4128.0,4127.9,0.45666224]
[1759107506432,1.36345889,4128.0,4127.9,0.02636224]
[1759107512729,1.60845889,4128.0,4127.9,0.23906224]
[1759107512932,1.60845889,4128.0,4127.9,1.78034649]
[1759107512933,1.36345889,4128.0,4127.9,1.78034649]
[1759107513135,1.26435889,4128.0,4127.9,1.78034649]
[1759107513334,1.39375889,4128.0,4127.9,1.78034649]
[1759107513529,1.26435889,4128.0,4127.9,1.78034649]
[1759107513724,1.60845889,4128.0,4127.9,0.02636224]
[1759107516635,1.36345889,4128.0,4127.9,0.02636224]
[1759107516832,1.60845889,4128.0,4127.9,0.02636224]
[1759107522139,2.484996,4128.0,4127.9,0.02636224]
[1759107523444,0.86524,4127.1,4127.0,3.2078]
[1759107523742,1.43074,4127.1,4127.0,3.2078]
[1759107524039,1.43074,4127.1,4127.0,3.4205]
[1759107524434,1.43264639,4127.1,4127.0,3.42271534]
[1759107524635,0.99670639,4127.1,4127.0,3.42271534]
[1759107525034,0.99670639,4127.1,4127.0,3.95031534]
[1759107525942,0.99670639,4127.1,4127.0,3.64411534]
[1759107526139,0.99670639,4127.1,4127.0,3.95031534]
[1759107526543,0.99670639,4127.1,4127.0,3.64411534]
[1759107527036,0.99670639,4127.1,4127.0,3.42271534]
[1759107529145,0.99670639,4127.1,4127.0,3.21001534]
[1759107529340,0.99670639,4127.1,4127.0,3.42271534]
[1759107530346,1.48562706,4127.1,4127.0,3.42271534]
[1759107531233,1.02602706,4127.1,4127.0,3.95031534]
[1759107531438,0.73582706,4127.1,4127.0,4.07511534]
[1759107532549,0.49082706,4127.1,4127.0,4.07511534]
[1759107532845,0.73582706,4127.1,4127.0,4.07511534]
[1759107533246,0.24690639,4127.1,4127.0,4.07511534]
[1759107534141,0.00190639,4127.1,4127.0,4.07511534]
[1759107536350,0.49086372,4127.1,4127.0,4.07511534]
[1759107537653,0.49086372,4127.1,4127.0,4.95165245]
[1759107538651,0.00190639,4127.1,4127.0,10.19665245]
[1759107542253,0.00190639,4127.1,4127.0,11.50300614]
[1759107542453,0.00190639,4127.1,4127.0,10.19665245]
[1759107543156,0.00190639,4127.1,4127.0,11.50300614]
[1759107544558,0.00190639,4127.1,4127.0,10.19665245]
[1759107549964,0.00190639,4127.1,4127.0,10.63260245]
[1759107550860,0.00190639,4127.1,4127.0,7.81549325]
[1759107551069,0.00190639,4127.1,4127.0,6.93895614]
[1759107552665,0.00190639,4127.1,4127.0,5.63260245]
[1759107554765,0.00190639,4127.1,4127.0,6.93895614]
[1759107555074,0.00190639,4127.1,4127.0,5.63260245]
[1759107556069,0.00190639,4127.1,4127.0,6.93895614]
[1759107556269,0.00190639,4127.1,4127.0,5.63260245]
[1759107558668,0.00190639,4127.1,4127.0,6.93895614]
[1759107559070,0.00190639,4127.1,4127.0,5.63260245]
[1759107559974,0.00190639,4127.1,4127.0,6.93895614]
[1759107560672,0.313,4128.0,4127.9,0.4267]
[1759107560867,0.313,4128.0,4127.9,1.62103711]
[1759107561370,0.74885,4128.0,4127.9,1.62103711]
[1759107561768,0.75117739,4128.0,4127.9,1.62103711]
[1759107561967,0.96867739,4128.0,4127.9,1.62103711]
[1759107562175,1.31777739,4128.0,4127.9,1.62103711]
[1759107562676,0.75117739,4128.0,4127.9,1.62103711]
[1759107563281,0.00232739,4128.0,4127.9,1.62103711]
[1759107563777,0.31532739,4128.0,4127.9,1.62103711]
[1759107563977,0.53282739,4128.0,4127.9,1.62103711]
[1759107568378,0.32102739,4128.0,4127.9,1.62103711]
[1759107568676,0.52772739,4128.0,4127.9,1.62103711]
[1759107574875,0.43579,4128.5,4127.9,1.65063711]
[1759107575074,0.43579,4128.5,4128.4,1.61303711]
[1759107575276,1.13004534,4128.5,4128.4,1.61303711]
[1759107575582,1.44874534,4128.5,4128.4,1.61303711]
[1759107575974,1.80968186,4128.5,4128.4,1.61303711]
[1759107576384,1.80968186,4128.5,4128.4,0.7365]
[1759107578786,0.75133652,4128.5,4128.4,1.75030513]
[1759107578975,0.88633652,4128.5,4128.4,1.75030513]
[1759107582278,0.7545,4128.4,4128.2,3.2078]
[1759107582477,0.4304,4128.3,4128.2,3.4124]
[1759107582682,0.7491,4128.3,4128.2,3.9443]
[1759107583684,0.7491,4128.3,4128.2,3.6298]
[1759107584286,0.7491,4128.3,4128.2,3.9443]
[1759107586690,0.7491,4128.3,4128.2,3.6298]
[1759107586880,0.7491,4128.3,4128.2,3.9443]
[1759107587484,1.18491,4128.3,4128.2,3.9443]
[1759107591886,1.18491,4128.3,4128.2,4.38013]
[1759107592080,0.96121,4128.3,4128.2,4.38013]
[1759107593080,0.96121,4128.3,4128.2,3.9443]
[1759107597295,0.5254,4128.3,4128.2,4.38013]
[1759107597495,0.43581,4128.4,4128.3,0.7584]
[1759107597794,0.76911,4128.4,4128.3,1.77220513]
[1759107597996,0.97591,4128.4,4128.3,1.77220513]
[1759107598396,1.46419613,4128.4,4128.3,1.77220513]
[1759107598597,0.43581,4128.4,4128.3,2.20802513]
[1759107599400,0.92413203,4128.4,4128.3,2.20802513]
[1759107600102,0.92413203,4128.4,4128.3,1.77220513]
[1759107600296,1.46423203,4128.4,4128.3,1.77220513]
[1759107600797,1.68563203,4128.4,4128.3,1.77220513]
[1759107600994,1.68563203,4128.4,4128.3,0.434]
[1759107601498,1.68563203,4128.4,4128.3,0.7584]
[1759107601695,1.24982203,4128.4,4128.3,1.19422]
[1759107601903,0.48832203,4128.4,4128.3,2.20802513]
[1759107602903,0.48832203,4128.4,4128.3,2.45302513]
[1759107603102,1.25743203,4128.4,4128.3,2.20802513]
[1759107603297,1.46423203,4128.4,4128.3,2.45302513]
[1759107604196,1.46423203,4128.4,4128.3,0.7584]
[1759107604197,1.68563203,4128.4,4128.3,0.7584]
[1759107604503,1.68563203,4128.4,4128.3,1.0034]
[1759107604692,1.68563203,4128.4,4128.3,0.2129]
[1759107604900,0.4282,4127.9,4127.8,0.2129]
[1759107605200,0.7615,4127.9,4127.8,0.2129]
[1759107605995,0.43587,4127.8,4127.7,3.2078]
[1759107606199,1.19737,4127.8,4127.7,3.4207]
[1759107606901,0.7615,4127.8,4127.7,3.9662]
[1759107611898,0.7615,4127.8,4127.7,3.6418]
[1759107612402,0.7615,4127.8,4127.7,3.9574]
[1759107617201,1.19737,4127.8,4127.7,4.39328]
[1759107617405,1.19737,4127.8,4127.7,3.9574]
[1759107619706,0.7615,4127.8,4127.7,3.9574]
[1759107619909,0.7615,4127.8,4127.7,4.39328]
[1759107623116,1.19737,4127.8,4127.7,4.39328]
[1759107624102,0.7615,4127.8,4127.7,4.39328]
[1759107625912,0.5401,4127.8,4127.7,4.39328]
[1759107631804,0.3333,4127.8,4127.7,4.39328]
[1759107632011,0.88553652,4128.5,4128.4,0.7706]
[1759107632214,0.2225,4127.9,4127.8,0.3289]
[1759107632518,0.7602,4127.9,4127.8,0.5522]
[1759107632717,0.7602,4127.9,4127.8,0.7706]
[1759107633207,0.7602,4127.9,4127.7,3.2078]
[1759107633208,1.19607,4127.8,4127.7,3.2078]